Cogmind - Beta 13 @@@ ROGUE MODE // 2024.04.24 @ 15:46:43 Player: MarKhan Result: Destroyed by G-34 Mercenary with Small Laser Performance ------------- Evolutions (1) 500 Regions Visited (3) 600 Robots Destroyed (24) 120 Value Destroyed (546) 546 Prototype IDs (6) 120 Alien Tech Used (0) 0 Bonus (56) 56 TOTAL SCORE: 1942 Bonus ------- High Alert Combat Kills 56 Cogmind --------- Core Integrity 0/400 Matter 7/300 Energy 100/100 System Corruption 3% Temperature Cool (6) Movement Hovering (60) Location -9/Storage Parts ------- > --- POWER (1) -------- (None) > --- PROPULSION (4) --- Hover Unit > --- UTILITY (2) ------ Advanced Visual Processing Unit System Shield > --- WEAPON (2) ------- Mini Grenade Launcher > --- INVENTORY (5) ---- F-cell Engine Propulsion Shielding Shield Generator System Shield Improved Light Cannon Peak State ------------ > --- POWER ------------ F-cell Engine > --- PROPULSION ------- Flight Unit > --- UTILITY ---------- System Shield System Shield > --- WEAPON ----------- Improved Light Cannon Mini Grenade Launcher > --- INVENTORY -------- Advanced Visual Processing Unit Propulsion Shielding Shield Generator System Shield [Rating: 17] Favorites ----------- Power Light Ion Engine Engine Light Ion Engine Propulsion Flight Unit Wheel Compact Wheel Hover Unit Hover Unit Flight Unit Flight Unit Utility Small Storage Unit Device Sensor Array Storage Small Storage Unit Processor Advanced Visual Processing Unit Hackware System Shield Protection Propulsion Shielding Weapon Assault Rifle Energy Gun Small Laser Ballistic Gun Assault Rifle Ballistic Cannon Improved Light Cannon Launcher Mini Grenade Launcher Special Weapon Welding Torch Special Melee Weapon Datajack Build | -11 -10 -9 -9 ------- Run | Yrd Mat Mat Sto Slots Evolved 2 | . . 2 . Power . | . . . . Propulsion 2 | . . 2 . Utility . | . . . . Weapon . | . . . . Parts Attached 32 | 6 10 11 5 Power 3 | 1 1 . 1 Engine 3 | 1 1 . 1 Core . | . . . . Reactor . | . . . . Propulsion 10 | 2 2 5 1 Treads . | . . . . Leg . | . . . . Wheel 2 | 2 . . . Hover 1 | . . . 1 Flight 7 | . 2 5 . Utility 8 | 1 4 2 1 Device 2 | . 2 . . Storage 2 | 1 1 . . Processor 1 | . . . 1 Hackware 2 | . . 2 . Protection 1 | . 1 . . Artifact . | . . . . Weapon 11 | 2 3 4 2 Energy Gun 3 | 1 1 1 . Energy Cannon . | . . . . Ballistic Gun 2 | 1 1 . . Ballistic Cannon 1 | . . . 1 Launcher 3 | . . 3 . Special Weapon 1 | . 1 . . Impact Weapon . | . . . . Slashing Weapon . | . . . . Piercing Weapon . | . . . . Special Melee Weapon 1 | . . . 1 Unidentified Prototypes 1 | . . . 1 Parts Lost 13 | . 1 7 5 Power 1 | . . . 1 Propulsion 7 | . . 5 2 Utility 2 | . 1 . 1 Weapon 3 | . . 2 1 Highest Loss Streak 6 | . 1 6 4 To Critical Strikes . | . . . . Average Slot Usage (%) 82 | . 88 90 60 Engine 10 | . 14 11 5 Wheel 9 | . 20 . . Flight 16 | . 7 34 11 Device 1 | . 3 . . Storage 8 | . 11 10 . Hackware 7 | . . 9 17 Protection 1 | . 2 2 . Energy Gun 6 | . 11 3 2 Ballistic Gun 8 | . 14 7 . Ballistic Cannon 1 | . . . 5 Launcher 5 | . . 9 11 Special Weapon 1 | . 2 1 . Naked Turns . | . . . . Heaviest Build 12 | 11 12 12 8 Greatest Support 26 | 26 26 16 8 Greatest Overweight (x) 2 | . 2 2 1 Average Overweight (x) . | . . . . Largest Inventory Capacity 8 | 8 8 8 5 Average Capacity 7 | 7 7 7 5 Most Carried 8 | 6 8 8 5 Average Carried 6 | 3 7 6 4 Final Capacity 8 | 8 8 5 5 Final Carried 7 | 6 7 5 5 Class Distribution -------------------- 66% | Mutant 19% | Scavenger-Sprinter 13% | Hacker-Mutant Dominant Class ---------------- Mutant | -10/Materials Scavenger-Sprinter | -9/Materials Mutant | -9/Storage Resources | -11 -10 -9 -9 ----------- Run | Yrd Mat Mat Sto Matter Collected 532 | 210 201 106 15 Remotely . | . . . . Salvage Created 340 | . 164 160 16 Parts 34 | . 16 16 2 Haulers Intercepted . | . . . . Recyclers Shooed . | . . . . Parts Field Recycled . | . . . . Retrieved Matter . | . . . . Parts Self-Destructed . | . . . . Prevented . | . . . . Kills | -11 -10 -9 -9 ------- Run | Yrd Mat Mat Sto Combat Hostiles Destroyed 20 | . 6 13 1 Guns 8 | . 6 2 . Cannons 1 | . . . 1 AOE 11 | . . 11 . Classes Destroyed 6 | . 2 3 1 Worker 2 | . . 1 1 Operator 1 | . . . 1 Watcher 1 | . . 1 . Swarmer 11 | . 3 8 . Grunt 6 | . 3 3 . Sentry 3 | . . 2 1 Best Kill Streak 14 | . 3 14 2 Combat Bots Only 12 | . 3 12 1 Max Kills in Single Turn 3 | . 1 3 1 Gunslinging . | . . . . Exploded 2 | . . 2 . Melee . | . . . . Uniques/NPCs Destroyed . | . . . . Combat | -11 -10 -9 -9 -------- Run | Yrd Mat Mat Sto Hostile Shots Fired 131 | . 40 72 19 Missed 37 | . 10 22 5 Damage Taken 1317 | . 318 645 354 Core 465 | . 59 242 164 Absorbed by Shields . | . . . . Redirected to Shielding 7 | . 3 4 . Core Remaining (%) 88 | 100 76 . . Volleys Fired 53 | . 25 18 10 Largest 2 | . 2 2 2 Hottest 86 | . 60 86 69 Shots Fired 77 | . 36 27 14 Gun 48 | . 36 12 . Cannon 4 | . . . 4 Launcher 25 | . . 15 10 Special . | . . . . Kinetic 35 | . 25 6 4 Thermal 17 | . 11 6 . Explosive 25 | . . 15 10 Electromagnetic . | . . . . Robot Hit Streak 8 | . 3 8 4 Robot Miss Streak 4 | . 4 2 . Penetration Max . | . . . . Secondary Targets . | . . . . Shots Hit Robots 38 | . 20 12 6 Core Hits 35 | . 10 20 5 Critical Kills 1 | . . 1 . Critical Parts Destroyed . | . . . . Critical Strikes 1 | . . 1 . Destroy 1 | . . 1 . Melee Attacks 6 | . . . 6 Impact . | . . . . Slashing . | . . . . Piercing . | . . . . Sneak Attacks 4 | . . . 4 Combat Hostiles . | . . . . Follow-up Attacks . | . . . . Damage Inflicted 1412 | . 257 965 190 Guns 326 | . 257 69 . Cannons 24 | . . . 24 Explosions 1062 | . . 896 166 Melee . | . . . . Ramming . | . . . . Kinetic 250 | . 190 36 24 Thermal 100 | . 67 33 . Explosive 1062 | . . 896 166 Electromagnetic . | . . . . Impact . | . . . . Slashing . | . . . . Piercing . | . . . . Highest Corruption 3 | . . . 3 Average Corruption 3 | . . . 3 Corruption Purged . | . . . . Corruption Blocked . | . . . . Effects 2 | . . . 2 Message Errors 2 | . . . 2 Overload Shots . | . . . . Overflow Damage 39 | . . 26 13 Projectiles . | . . . . Explosions 39 | . . 26 13 Melee . | . . . . Knockbacks . | . . . . Impact . | . . . . Kinetic . | . . . . Secondary . | . . . . Self-Inflicted Damage 225 | . . 153 72 Shots 7 | . . 5 2 Rammed . | . . . . Targets Rammed . | . . . . Kicked . | . . . . Crushed . | . . . . Highest Temperature 141 | . 81 141 4 Average Temperature 50 | . 46 57 4 Received Heat Transfer 321 | . 135 111 75 Siege Activations . | . . . . Robots Corrupted . | . . . . Combat Hostiles . | . . . . Parts Fried . | . . . . Impact Corruptions . | . . . . Robots Melted . | . . . . Combat Hostiles . | . . . . Parts Melted . | . . . . Heat Transferred 224 | . 150 74 . Parts Sabotaged . | . . . . Parts Stolen . | . . . . Parts Stripped . | . . . . Power Chain Reactions . | . . . . Alert | -11 -10 -9 -9 ------- Run | Yrd Mat Mat Sto Peak Influence 609 | . 206 609 442 Initial 256 | . . 23 256 Average 198 | . 91 283 366 Maximum Alert Level 2 | . 1 2 2 Low Security (%) 63 | 100 99 47 . Level 1 19 | . . 20 63 Level 2 16 | . . 31 36 Level 3 . | . . . . Level 4 . | . . . . Level 5 . | . . . . High Security . | . . . . Max Security . | . . . . Squads Dispatched 5 | . 2 2 1 Investigation 4 | . 2 2 . Extermination . | . . . . Reinforcement 1 | . . . 1 Assault . | . . . . Garrison . | . . . . Intercept . | . . . . Searches Triggered . | . . . . Construction Impeded . | . . . . Haulers Reinforced . | . . . . Active Scanning Responses . | . . . . Cargo Convoy Interrupts . | . . . . Stealth | -11 -10 -9 -9 --------- Run | Yrd Mat Mat Sto Distress Signals 3 | . . 2 1 Communications Jammed . | . . . . Distress Signals . | . . . . Times Spotted 38 | . 10 20 8 Peak Tracking Total 11 | . 3 11 6 Tactical Retreats 2 | . 1 1 . Traps | -11 -10 -9 -9 ------- Run | Yrd Mat Mat Sto Traps Triggered 1 | . 1 . . Indirectly . | . . . . Trap Hack Attempts . | . . . . Triggered . | . . . . Disarmed . | . . . . Reprogrammed . | . . . . Reused . | . . . . Traps Extracted . | . . . . Installed . | . . . . Triggered . | . . . . Machines | -11 -10 -9 -9 ---------- Run | Yrd Mat Mat Sto Machines Disabled 5 | . . 3 2 Max in Single Turn 2 | . . 2 1 Garrison Access 1 | . . . 1 Machines Repaired . | . . . . Machines Dismantled . | . . . . Machines Sabotaged . | . . . . Overloaded Fab Kills . | . . . . Hacking | -11 -10 -9 -9 --------- Run | Yrd Mat Mat Sto Machines Accessed 18 | . 7 6 5 Terminals 14 | . 5 5 4 Fabricators . | . . . . Repair Stations . | . . . . Recycling Units 2 | . 2 . . Scanalyzers 1 | . . 1 . Garrison Access 1 | . . . 1 Total Hacks 70 | . 23 32 15 Successful 42 | . 14 21 7 Failed 28 | . 9 11 8 Catastrophic 5 | . . 3 2 Database Lockouts . | . . . . Manual 18 | . 7 5 6 Terminals 51 | . 18 22 11 Fabricators . | . . . . Repair Stations . | . . . . Recycling Units 5 | . 5 . . Scanalyzers 10 | . . 10 . Garrison Access 4 | . . . 4 Terminal Hacks 26 | . 9 12 5 Record 2 | . . 1 1 Prototype ID Bank 2 | . 1 1 . Open Door 2 | . . . 2 Emergency Access Points 1 | . . 1 . Terminal Index 3 | . 1 1 1 Scanalyzer Index 1 | . . 1 . Unreport Threat 1 | . 1 . . Locate Traps 6 | . 2 3 1 Dispatch Records 1 | . . 1 . Maintenance Status 1 | . . 1 . Hauler Manifests 2 | . 1 1 . Zone Layout 4 | . 3 1 . Fabricator Hacks . | . . . . Repair Station Hacks . | . . . . Recycling Unit Hacks 4 | . 4 . . Recycle Component 1 | . 1 . . Process 1 | . 1 . . Report Inventory 1 | . 1 . . Retrieve Matter 1 | . 1 . . Scanalyzer 9 | . . 9 . Insert Component 3 | . . 3 . Analyze 6 | . . 6 . Garrison Access Hacks 2 | . . . 2 Unlock Access 1 | . . . 1 Seal Access 1 | . . . 1 Unauthorized Hacks 1 | . 1 . . Terminals . | . . . . Fabricators . | . . . . Repair Stations . | . . . . Recycling Units 1 | . 1 . . Monitor 1 | . 1 . . Scanalyzers . | . . . . Garrison Access . | . . . . Data Cores Recovered . | . . . . Used . | . . . . Hacking Detections 15 | . 7 6 2 Full Trace Events 5 | . 2 3 . Feedback Events . | . . . . Feedback Blocked . | . . . . Robot Schematics Acquired . | . . . . Robots Built . | . . . . Authchips . | . . . . Time . | . . . . Total Robot Build Rating . | . . . . Part Schematics Acquired 3 | . . 3 . Parts Built . | . . . . Authchips . | . . . . Time . | . . . . Total Part Build Rating . | . . . . Parts Repaired . | . . . . Time . | . . . . Parts Recycled 1 | . 1 . . Recycled Matter 159 | . 159 . . Retrieved Matter 159 | . 159 . . Retrieved Components . | . . . . Parts Scanalyzed 3 | . . 3 . Part Schematics Acquired 3 | . . 3 . Parts Damaged . | . . . . Bothacking | -11 -10 -9 -9 ------------ Run | Yrd Mat Mat Sto Used RIF Installer . | . . . . Robots Hacked 4 | . . . 4 Non-combat 3 | . . . 3 Combat 1 | . . . 1 Robot Hacks Applied 5 | . . . 5 parse_system 2 | . . . 2 no_distress 2 | . . . 2 find_recycling 1 | . . . 1 Relay Couplers Released . | . . . . Fabnet Peak Effective % . | . . . . Robots Rewired . | . . . . Allies Hacked . | . . . . Hacks Repelled . | . . . . Allies | -11 -10 -9 -9 -------- Run | Yrd Mat Mat Sto Total Allies . | . . . . Largest Group . | . . . . Highest-Rated Group . | . . . . Highest-Rated Ally . | . . . . Total Orders . | . . . . Ally Attacks . | . . . . Total Damage . | . . . . Kills . | . . . . Allies Corrupted . | . . . . Allies Melted . | . . . . Intel | -11 -10 -9 -9 ------- Run | Yrd Mat Mat Sto Robot Analysis Total . | . . . . Derelict Logs Recovered . | . . . . Drone Launches . | . . . . Drone Recoveries . | . . . . Exploration | -11 -10 -9 -9 ------------- Run | Yrd Mat Mat Sto Turns Passed 851 | 65 361 238 187 Spaces Moved 1145 | 57 327 476 285 Core 22 | 2 . . 20 Treads . | . . . . Legs . | . . . . Wheels 278 | 55 223 . . Hover 53 | . . . 53 Flight 792 | . 104 476 212 Fastest Speed 31 | 50 37 31 37 Average Speed 54 | 89 78 35 49 Slowest Speed 205 | 100 205 200 120 Overloaded Moves . | . . . . Propulsion Burnouts . | . . . . Robots Hopped 5 | . . 5 . Cave-ins Triggered 1 | . . . 1 Exploration Rate (%) 26 | 4 45 35 21 Regions Visited 3 Branch Regions 1 Pre-discovered Areas . | . . . . Known Exits Taken . | . . . . Unknown Exits Taken 3 | 1 1 1 . Scrap Searched . | . . . . Spaces Dug 12 | . . 12 . Terrain Destroyed 181 | . . 101 80 Melee . | . . . . Projectile . | . . . . AOE 181 | . . 101 80 Terrain Rammed . | . . . . Walls Destroyed . | . . . . Machines Disabled . | . . . . Actions | -11 -10 -9 -9 --------- Run | Yrd Mat Mat Sto Total 1289 | 68 398 509 314 Wait 14 | . 11 . 3 Move 1131 | 56 326 465 284 Hop 5 | . . 5 . Pick Up 27 | 6 13 6 2 Fast Attach 15 | 6 4 3 2 Attach 10 | . 3 5 2 Detach 1 | . . . 1 Swap 7 | . 3 3 1 Drop 19 | . 13 4 2 Fire 53 | . 25 18 10 Melee 6 | . . . 6 Ram . | . . . . Kick . | . . . . Crush . | . . . . Escape Stasis 1 | . . . 1 Rewire . | . . . . Trap . | . . . . Miscellaneous . | . . . . Route ------- -11/Scrapyard -10/Materials -9/Materials (discovered 2 exits: [*Mat] / *Sto) -9/Storage History --------- Turn | Location | Event 15 | -11/Scrapyard | Discovered new exit (range 16) 66 | -11/Scrapyard | Entered Materials 318 | -10/Materials | Build established: Mutant 381 | -10/Materials | Discovered new exit (range 16) 427 | -10/Materials | Entered another Materials area 427 | -9/Materials | Evolved 2 slots: Propulsion x2 517 | -9/Materials | Discovered new exit (range 12) 519 | -9/Materials | Discovered new exit (range 9) 604 | -9/Materials | Core integrity fell below 50% 630 | -9/Materials | Lost 6 parts (4n2w) 636 | -9/Materials | Destroyed 12 combat bots 665 | -9/Materials | Entered Storage 670 | -9/Storage | Identified exit to Garrison 770 | -9/Storage | Crushed by falling debris 783 | -9/Storage | Core integrity fell below 20% 801 | -9/Storage | Lost 4 parts (1p2n1u) 852 | -9/Storage | Destroyed by G-34 Mercenary with Small Laser Last Messages --------------- Jacked U-05 Engineer... >>no_distress Distress signal routine blocked. U-05 Engineer lays Concrete. Sneak attack on U-05 Engineer. Jacked U-05 Engineer... >>no_distress Distress signal routine blocked. Sneak attack on R-06 Scavenger. Jacked R-06 Scavenger... >>find_recycling Pinpointed nearest Recycling Unit: (26,28) (added to intel). Jacked G-34 Mercenary... >>parse_system Reading system data... Datajack destroyed. 4PB2LOUWOOXT3VKI&IS7U&WXV0GETF W-16 Scout sends out distress signal. U-05 Engineer lays Concrete. Map ----- +----------------------------------------------------+ | | | | | | | | | | | | | | | | | | | ???????????????????????????????????????????##### | | ???????????????????????????????????????##### # | | ???????????????????????????????????????# | | ???????????????????????????????######### | | ???????????????????????????????#[[[[ + | | ???????????????????????????????# # ##### | | ???????????????????????????????#]]] [ # # | | ???????????????????????????????######T## # ### | | ????????????????????????????????????#### + ! # | | ????????????????????????###########????# #T### | | ????????????????????????# #????# ###?? | | ????????????????????????# #????# #???? | | ?????????????????????????? #????# #???? | | ???????????????????????????? ??????# #???? | | ???????????????????????????### ##?????## ##??? | | ?????????????##+############ ####### #??? | | ??????????# @ T" #??? | | ??????????# a w " #??? | | ??????????######+### #### ####### #??? | | ???????????????????# #??######?????# #??? | | ???????????????????#gg #?????????????#######??? | | ???????????????????# #??????????????????????? | | ???????????????????# #??????????????????????? | | ???????????????????# ??????????????????????? | | ???????????????????+ ??????????????????????? | | ???????????????????# ??????????????????????? | | ???????????????????# ??????????????????????? | | ???????????????????# ^ ??????????????????????? | | ???????????????????# ??????????????????????? | | ???????????????????# ??????????????????????? | | ???????????????????# ??????????????????????? | | ??????????????????? ??????????????????????? | | ???????????????????##+###??????????????????????? | | ???????????????????????????????????????????????? | | ???????????????????????????????????????????????? | | ???????????????????????????????????????????????? | | ???????????????????????????????????????????????? | | ???????????????????????????????????????????????? | | ???????????????????????????????????????????????? | | ???????????????????????????????????????????????? | | ???????????????????????????????????????????????? | +----------------------------------------------------+ Best States ------------- Heat Dissipation 28 Energy Generation 19 Energy Capacity 500 Matter Stores 300 Matter Capacity 300 Sight Range 20 Robot Scan Range 14 Terrain Scan Density 10 Propulsion Shielding 33 Evasion (%) 63 Defensive Hacking 20 Item Schematics ----------------- Imp. Medium Laser | -9/Materials | Scanalyzed System Shield | -9/Materials | Scanalyzed Adv. Visual Processing Unit | -9/Materials | Scanalyzed Robot Schematics ------------------ None Fabricated ------------ Nothing Alien Tech Used ----------------- None Achievements -------------- Shopping List True Hacker Unlikely Earthworm Challenges ------------ None Game ------ Seed MultinovaReactionCycler Manual? 0 Play Time 00:42:39 Cumulative 7.6 hours Start 2024.04.24 @ 15:01:17 End 2024.04.24 @ 15:46:43 Sessions 1 Manual Loads 0 Difficulty Rogue Special Mode None Game No. 5 Rogue 5 Adventurer 0 Explorer 0 Win Type - Total 0 Types 0/0/0/0/0/0/0/0/0 Lore% 7 Gallery% 11 Achievement% 11 Wizard Run 0 Options --------- Layout 1 ASCII 0 Keyboard 1 Movement Numpad Keybinds 0 Fullscreen 2 Font 24/Smallcaps Map View 50x35 Zoom Use 0% Tactical HUD 0 Map Filters NONE Filters NONE Steam 1 RUN: 23da20e3-2333-4c1f-85d3-24b9e6d27d5a